Cogmind - Beta 10.1 @@@ ROGUE MODE // 2020.10.01 @ 17:56:16 Player: MJWkr Result: Destroyed by S-27 Virus with Autogun Performance ------------- Evolutions (5) 2500 Regions Visited (6) 1200 Robots Destroyed (63) 315 Value Destroyed (2642) 2642 Prototype IDs (4) 80 Alien Tech Used (0) 0 Bonus (332) 332 TOTAL SCORE: 7069 Bonus ------- High Alert Combat Kills 100 Follower Combat Kills 232 Cogmind --------- Core Integrity 0/1000 Matter 300/300 Energy 100/100 System Corruption 3% Temperature Cool (0) Movement Core (50) Location -5/Factory Parts ------- > --- POWER (2) -------- (None) > --- PROPULSION (4) --- (None) > --- UTILITY (7) ------ (None) > --- WEAPON (4) ------- (None) > --- INVENTORY (4) ---- Improved Heat Sink Matter Filter Improved Light Armor Plating Peak State ------------ > --- POWER ------------ Enhanced Nuclear Core > --- PROPULSION ------- Light Treads Light Treads > --- UTILITY ---------- Improved Cooling System Improved Cooling System Large Storage Unit Compact Matter Pod Target Analyzer Hacking Suite Hacking Suite > --- WEAPON ----------- Precision Shock Rifle Heavy Ion Cannon Gauss Rifle Flak Gun > --- INVENTORY -------- Improved Heat Sink Improved Heat Sink Large Battery Compact Battery Advanced Signal Interpreter Long-range Terrain Scanner Hardened Light Armor Plating Improved Light Armor Plating [Rating: 47] Favorites ----------- Power Enhanced Nuclear Core Engine Ion Engine Power Core Enhanced Nuclear Core Propulsion Light Treads Treads Light Treads Hover Unit Gravmag System Flight Unit Field Propulsion Drive Utility Improved Cooling System Device Improved Cooling System Storage Small Storage Unit Processor Target Analyzer Hackware Hacking Suite Protection Medium Armor Plating Weapon Advanced Assault Cannon Energy Gun Shock Rifle Energy Cannon Advanced Beam Cannon Ballistic Gun Assault Rifle Ballistic Cannon Advanced Assault Cannon Launcher Grenade Launcher Build | -11 -10 -9 -8 -7 -6 -5 ------- Run | Scr Mat Mat Mat Fac Fac Fac Slots Evolved 10 | . . 2 2 2 2 2 Power 1 | . . . . . 1 . Propulsion 2 | . . . . . . 2 Utility 5 | . . . 2 2 1 . Weapon 2 | . . 2 . . . . Parts Attached 87 | 7 2 6 16 29 18 9 Power 11 | 2 . . 3 3 2 1 Engine 3 | 2 . . 1 . . . Core 8 | . . . 2 3 2 1 Reactor . | . . . . . . . Propulsion 21 | 2 . 2 5 7 3 2 Treads 18 | 2 . 2 5 7 1 1 Leg . | . . . . . . . Wheel . | . . . . . . . Hover 1 | . . . . . 1 . Flight 2 | . . . . . 1 1 Utility 20 | 1 1 . 4 7 6 1 Device 11 | . 1 . 3 4 3 . Storage 5 | 1 . . . 1 2 1 Processor 1 | . . . . 1 . . Hackware 2 | . . . . 1 1 . Protection 1 | . . . 1 . . . Artifact . | . . . . . . . Weapon 35 | 2 1 4 4 12 7 5 Energy Gun 16 | 1 1 1 2 6 4 1 Energy Cannon 7 | . . 1 . 2 1 3 Ballistic Gun 8 | 1 . 1 2 2 1 1 Ballistic Cannon 2 | . . . . 2 . . Launcher 2 | . . 1 . . 1 . Special Weapon . | . . . . . . . Impact Weapon . | . . . . . . . Slashing Weapon . | . . . . . . . Piercing Weapon . | . . . . . . . Special Melee Weapon . | . . . . . . . Unidentified Prototypes 4 | . . 1 1 2 . . Parts Lost 47 | . . 2 7 12 18 8 Power 5 | . . . 1 . 3 1 Propulsion 9 | . . . . 3 3 3 Utility 8 | . . . 1 2 5 . Weapon 25 | . . 2 5 7 7 4 Highest Loss Streak 9 | . . 1 4 4 9 5 Average Slot Usage (%) 84 | . 95 99 91 95 67 25 Engine 2 | . 14 11 2 1 . . Core 4 | . . . 5 5 4 1 Treads 14 | . 28 22 17 14 9 3 Device 17 | . 9 11 22 24 9 . Storage 8 | . 14 11 9 7 9 6 Processor 3 | . . . . 5 4 . Hackware 4 | . . . . 6 8 . Energy Gun 7 | . 14 6 6 8 6 . Energy Cannon 3 | . . 3 9 1 4 5 Ballistic Gun 11 | . 14 21 17 10 8 . Ballistic Cannon 2 | . . . . 6 . . Naked Turns 75 | . . . . . 26 49 Heaviest Build 58 | 12 14 21 27 54 48 58 Greatest Support 40 | 40 40 40 40 40 40 27 Greatest Overweight (x) 13 | 3 . . 1 2 11 13 Average Overweight (x) . | . . . . . . 1 Largest Inventory Capacity 12 | 6 6 6 6 10 10 12 Average Capacity 7 | 5 6 6 6 8 8 6 Most Carried 10 | 2 6 6 6 10 10 4 Average Carried 6 | 1 4 5 5 7 6 3 Final Capacity 10 | 6 6 6 6 10 4 4 Final Carried 7 | 2 6 6 6 7 3 3 Class Distribution -------------------- 39% | Scavenger-Gunner 25% | Mutant 22% | Gunner 11% | Hacker-Gunner Dominant Class ---------------- Mutant | -10/Materials Gunner | -9/Materials Scavenger-Gunner | -8/Materials Scavenger-Gunner | -7/Factory Hacker-Gunner | -6/Factory Mutant | -5/Factory Resources | -11 -10 -9 -8 -7 -6 -5 ----------- Run | Scr Mat Mat Mat Fac Fac Fac Matter Collected 2177 | 230 102 156 316 917 380 76 Remotely . | . . . . . . . Salvage Created 2785 | . 106 277 709 1078 419 196 Parts 145 | . 9 21 37 50 22 6 Haulers Intercepted 2 | . . . 1 1 . . Recyclers Shooed 1 | . . . . 1 . . Parts Field Recycled . | . . . . . . . Retrieved Matter . | . . . . . . . Parts Self-Destructed . | . . . . . . . Prevented . | . . . . . . . Kills | -11 -10 -9 -8 -7 -6 -5 ------- Run | Scr Mat Mat Mat Fac Fac Fac Combat Hostiles Destroyed 56 | . 4 5 15 22 7 3 Guns 38 | . 4 3 8 17 6 . Cannons 15 | . . 2 7 3 . 3 AOE 2 | . . . . 2 . . Classes Destroyed 12 | . 2 4 1 5 . . Worker 1 | . . . . 1 . . Builder 2 | . . . . 2 . . Tunneler 1 | . . 1 . . . . Hauler 2 | . . . 1 1 . . Watcher 1 | . . 1 . . . . Swarmer 9 | . 2 . 3 4 . . Grunt 24 | . 2 1 9 7 3 2 Brawler 2 | . . . . 2 . . Duelist 2 | . . 1 . 1 . . Sentry 13 | . . 3 3 4 3 . Hunter 2 | . . . . 1 . 1 Programmer 4 | . . . . 3 1 . Best Kill Streak 7 | . 2 2 6 7 2 1 Combat Bots Only 7 | . 2 2 6 7 2 1 Max Kills in Single Turn 2 | . 1 1 1 2 1 1 Gunslinging . | . . . . . . . Exploded 1 | . . . . 1 . . Melee . | . . . . . . . Uniques/NPCs Destroyed . | . . . . . . . Combat | -11 -10 -9 -8 -7 -6 -5 -------- Run | Scr Mat Mat Mat Fac Fac Fac Damage Taken 7717 | . 227 386 694 2165 1900 2345 Core 2032 | . 50 47 82 204 634 1015 Absorbed by Shields . | . . . . . . . Core Remaining (%) 74 | 100 80 88 85 70 25 . Volleys Fired 164 | . 14 16 36 61 23 14 Largest 4 | . 2 4 4 4 4 3 Hottest 294 | . 60 110 204 234 176 294 Shots Fired 493 | . 28 47 130 200 55 33 Gun 360 | . 28 39 94 149 44 6 Cannon 128 | . . 7 36 51 7 27 Launcher 5 | . . 1 . . 4 . Special . | . . . . . . . Kinetic 268 | . 14 32 68 132 20 2 Thermal 145 | . . 11 58 26 19 31 Explosive 1 | . . 1 . . . . Electromagnetic 79 | . 14 3 4 42 16 . Robot Hit Streak 22 | . 9 8 21 22 8 5 Robot Miss Streak 4 | . 3 2 2 4 3 1 Penetration Max 1 | . . . . 1 . . Secondary Targets 7 | . 1 . . 5 1 . Max Gunslinging Chain 1 | . 1 . . 1 1 . Shots Hit Robots 327 | . 19 32 79 131 45 21 Core Hits 160 | . 6 13 31 80 23 7 Critical Hits 10 | . . . 5 2 3 . Critical Kills 2 | . . . 1 . 1 . Critical Parts Destroyed 7 | . . . 3 2 2 . Melee Attacks . | . . . . . . . Impact . | . . . . . . . Slashing . | . . . . . . . Piercing . | . . . . . . . Sneak Attacks . | . . . . . . . Combat Hostiles . | . . . . . . . Follow-up Attacks . | . . . . . . . Damage Inflicted 6565 | . 207 452 1227 3197 881 601 Guns 3688 | . 207 277 553 1980 621 50 Cannons 2101 | . . 124 674 691 61 551 Explosions 765 | . . 51 . 526 188 . Melee . | . . . . . . . Ramming 11 | . . . . . 11 . Kinetic 3031 | . 108 248 383 1933 341 18 Thermal 2719 | . . 153 814 856 313 583 Explosive 51 | . . 51 . . . . Electromagnetic 753 | . 99 . 30 408 216 . Impact . | . . . . . . . Slashing . | . . . . . . . Piercing . | . . . . . . . Highest Corruption 7 | . 1 4 . 1 7 3 Average Corruption 1 | . 1 3 . 1 1 2 Corruption Purged . | . . . . . . . Effects 24 | . 1 7 . 11 5 . Message Errors 9 | . 1 . . 4 4 . Matter Fused 1 | . . 1 . . . . Heat Flow Errors 1 | . . 1 . . . . Energy Discharges 4 | . . 2 . 2 . . Data Loss (minor) 6 | . . 3 . 3 . . Targeting Errors 2 | . . . . 2 . . Weapon Failures 1 | . . . . . 1 . Overload Shots . | . . . . . . . Overflow Damage 315 | . . . . 217 87 11 Projectiles 11 | . . . . . . 11 Explosions 304 | . . . . 217 87 . Melee . | . . . . . . . Knockbacks 3 | . . . . 3 . . Impact . | . . . . . . . Kinetic 3 | . . . . 3 . . Secondary . | . . . . . . . Self-Inflicted Damage 259 | . . 45 . 107 107 . Shots 5 | . . 1 . 2 2 . Rammed 3 | . . . . . 3 . Targets Rammed 3 | . . . . . 3 . Kicked . | . . . . . . . Crushed . | . . . . . . . Highest Temperature 628 | . 24 78 147 628 37 604 Average Temperature 119 | . 13 29 44 220 14 224 Received Heat Transfer 1680 | . 42 123 297 564 375 279 Effects 16 | . . . . 10 . 6 Shutdowns 3 | . . . . 2 . 1 Energy Bleed 2 | . . . . 2 . . Short Circuit 3 | . . . . 2 . 1 Damage (minor) 3 | . . . . 2 . 1 Damage (major) 5 | . . . . 2 . 3 Siege Activations . | . . . . . . . Robots Corrupted 1 | . . . . . 1 . Combat Hostiles 1 | . . . . . 1 . Parts Fried . | . . . . . . . Impact Corruptions . | . . . . . . . Robots Melted . | . . . . . . . Combat Hostiles . | . . . . . . . Parts Melted 9 | . . . 3 2 . 4 Heat Transferred 4226 | . . 296 1517 1030 459 924 Parts Sabotaged . | . . . . . . . Parts Stolen . | . . . . . . . Parts Stripped . | . . . . . . . Power Chain Reactions . | . . . . . . . Missiles Intercepted . | . . . . . . . Alert | -11 -10 -9 -8 -7 -6 -5 ------- Run | Scr Mat Mat Mat Fac Fac Fac Peak Influence 587 | . 145 238 360 587 327 110 Initial 287 | . . 61 100 105 287 37 Average 191 | . 74 130 221 236 194 57 Maximum Alert Level 2 | . . 1 1 2 1 . Low Security (%) 53 | 100 100 74 19 43 52 100 Level 1 38 | . . 25 80 38 47 . Level 2 8 | . . . . 18 . . Level 3 . | . . . . . . . Level 4 . | . . . . . . . Level 5 . | . . . . . . . High Security . | . . . . . . . Max Security . | . . . . . . . Squads Dispatched 26 | . 1 . 2 13 7 3 Investigation 4 | . 1 . . 1 1 1 Extermination 7 | . . . . 4 2 1 Reinforcement 6 | . . . 2 2 1 1 Assault . | . . . . . . . Garrison 9 | . . . . 6 3 . Intercept . | . . . . . . . Construction Impeded 1 | . . . . 1 . . Haulers Reinforced 1 | . . . . 1 . . Stealth | -11 -10 -9 -8 -7 -6 -5 --------- Run | Scr Mat Mat Mat Fac Fac Fac Distress Signals 4 | . 1 2 1 . . . Communications Jammed . | . . . . . . . Distress Signals . | . . . . . . . Times Spotted 98 | . 6 9 23 28 17 15 Peak Tracking Total 8 | . 4 4 6 5 4 8 Tactical Retreats 12 | . . 2 1 1 6 2 Traps | -11 -10 -9 -8 -7 -6 -5 ------- Run | Scr Mat Mat Mat Fac Fac Fac Traps Triggered 6 | . 1 2 . . 2 1 Indirectly . | . . . . . . . Trap Hack Attempts . | . . . . . . . Triggered . | . . . . . . . Disarmed . | . . . . . . . Reprogrammed . | . . . . . . . Reused . | . . . . . . . Traps Extracted . | . . . . . . . Installed . | . . . . . . . Triggered . | . . . . . . . Machines | -11 -10 -9 -8 -7 -6 -5 ---------- Run | Scr Mat Mat Mat Fac Fac Fac Machines Disabled 12 | . 1 . . 9 2 . Max in Single Turn 3 | . 1 . . 3 2 . Machines Sabotaged . | . . . . . . . Garrisons Compromised . | . . . . . . . Overloaded Fab Kills . | . . . . . . . Fab Network Shutdowns . | . . . . . . . Hacking | -11 -10 -9 -8 -7 -6 -5 --------- Run | Scr Mat Mat Mat Fac Fac Fac Machines Accessed 20 | . 2 3 3 7 4 1 Terminals 10 | . 1 2 2 3 1 1 Fabricators 1 | . . . . 1 . . Repair Stations 5 | . . 1 1 2 1 . Recycling Units 1 | . 1 . . . . . Scanalyzers 1 | . . . . . 1 . Garrison Access 2 | . . . . 1 1 . Total Hacks 42 | . 3 4 7 17 10 1 Successful 16 | . 1 . 3 6 5 1 Failed 26 | . 2 4 4 11 5 . Catastrophic 4 | . . 2 . 1 1 . Database Lockouts . | . . . . . . . Manual 22 | . 2 3 5 7 5 . Terminals 21 | . 2 3 5 8 2 1 Fabricators 2 | . . . . 2 . . Repair Stations 13 | . . 1 2 5 5 . Recycling Units 1 | . 1 . . . . . Scanalyzers 2 | . . . . . 2 . Garrison Access 3 | . . . . 2 1 . Terminal Hacks 4 | . . . 1 2 . 1 Record 1 | . . . . . . 1 Part Schematic 1 | . . . . 1 . . Level Access Points 1 | . . . . 1 . . Dispatch Records 1 | . . . 1 . . . Fabricator Hacks . | . . . . . . . Repair Station Hacks 9 | . . . 2 3 4 . Scan Component 5 | . . . 1 2 2 . Repair 4 | . . . 1 1 2 . Recycling Unit Hacks 1 | . 1 . . . . . Report Inventory 1 | . 1 . . . . . Scanalyzer . | . . . . . . . Garrison Access Hacks . | . . . . . . . Unauthorized Hacks 2 | . . . . 1 1 . Terminals . | . . . . . . . Fabricators . | . . . . . . . Repair Stations . | . . . . . . . Recycling Units . | . . . . . . . Scanalyzers . | . . . . . . . Garrison Access 2 | . . . . 1 1 . Reprogram 2 | . . . . 1 1 . Data Cores Recovered . | . . . . . . . Used . | . . . . . . . Hacking Detections 18 | . 1 3 3 6 4 1 Full Trace Events 2 | . 1 . . . 1 . Feedback Events 1 | . 1 . . . . . Corruption 1 | . 1 . . . . . Feedback Blocked . | . . . . . . . Robot Schematics Acquired . | . . . . . . . Robots Built . | . . . . . . . Matter . | . . . . . . . Time . | . . . . . . . Total Robot Build Rating . | . . . . . . . Part Schematics Acquired 1 | . . . . 1 . . Parts Built . | . . . . . . . Matter . | . . . . . . . Time . | . . . . . . . Total Part Build Rating . | . . . . . . . Parts Repaired 4 | . . . 1 1 2 . Time 105 | . . . 26 35 44 . Parts Recycled . | . . . . . . . Recycled Matter . | . . . . . . . Retrieved Matter . | . . . . . . . Retrieved Components . | . . . . . . . Parts Scanalyzed . | . . . . . . . Part Schematics Acquired . | . . . . . . . Parts Damaged . | . . . . . . . Bothacking | -11 -10 -9 -8 -7 -6 -5 ------------ Run | Scr Mat Mat Mat Fac Fac Fac Used RIF Installer . | . . . . . . . Robots Hacked . | . . . . . . . Non-combat . | . . . . . . . Combat . | . . . . . . . Robot Hacks Applied . | . . . . . . . Relay Couplers Released . | . . . . . . . Robots Rewired . | . . . . . . . Allies Hacked . | . . . . . . . Hacks Repelled . | . . . . . . . Allies | -11 -10 -9 -8 -7 -6 -5 -------- Run | Scr Mat Mat Mat Fac Fac Fac Total Allies 2 | . . . . 1 1 . Largest Group 1 | . . . . 1 1 . Highest-Rated Group 32 | . . . . 32 32 . Highest-Rated Ally 32 | . . . . 32 32 . Total Orders . | . . . . . . . Ally Attacks 18 | . . . . 13 5 . Total Damage 887 | . . . . 679 208 . Kills 10 | . . . . 9 1 . Allies Corrupted . | . . . . . . . Allies Melted . | . . . . . . . Intel | -11 -10 -9 -8 -7 -6 -5 ------- Run | Scr Mat Mat Mat Fac Fac Fac Robot Analysis Total . | . . . . . . . Derelict Logs Recovered . | . . . . . . . Drone Launches . | . . . . . . . Drone Recoveries . | . . . . . . . Exploration | -11 -10 -9 -8 -7 -6 -5 ------------- Run | Scr Mat Mat Mat Fac Fac Fac Turns Passed 4874 | 73 325 355 538 2187 1067 329 Spaces Moved 2495 | 41 173 181 212 1076 632 180 Core 158 | 6 . . . . 63 89 Treads 2111 | 35 173 181 212 1076 422 12 Legs . | . . . . . . . Wheels . | . . . . . . . Hover 91 | . . . . . 72 19 Flight 135 | . . . . . 75 60 Fastest Speed 40 | 50 160 160 160 160 40 50 Average Speed 158 | 152 160 160 160 169 142 146 Slowest Speed 700 | 200 160 160 180 200 600 700 Overloaded Moves . | . . . . . . . Propulsion Burnouts . | . . . . . . . Robots Hopped 2 | . . . . . 2 . Cave-ins Triggered . | . . . . . . . Exploration Rate (%) 17 | 3 33 23 23 19 17 5 Regions Visited 6 Branch Regions . Pre-discovered Areas . | . . . . . . . Known Exits Taken 1 | . . . . 1 . . Unknown Exits Taken 5 | 1 1 1 1 . 1 . Scrap Searched . | . . . . . . . Spaces Dug . | . . . . . . . Terrain Destroyed 129 | . . 10 . 90 21 8 Melee . | . . . . . . . Projectile 19 | . . . . 8 3 8 AOE 110 | . . 10 . 82 18 . Terrain Rammed . | . . . . . . . Walls Destroyed . | . . . . . . . Machines Disabled . | . . . . . . . Actions | -11 -10 -9 -8 -7 -6 -5 --------- Run | Scr Mat Mat Mat Fac Fac Fac Total 3041 | 49 193 210 330 1299 746 214 Wait 232 | . . 5 53 107 58 9 Move 2485 | 40 172 180 211 1075 627 180 Hop 2 | . . . . . 2 . Pick Up 24 | 1 4 2 4 10 3 . Fast Attach 54 | 7 1 1 9 11 16 9 Attach 19 | . . 3 4 10 2 . Detach 8 | 1 . . 1 4 1 1 Swap 15 | . 1 2 4 8 . . Drop 24 | . 1 1 8 13 . 1 Fire 164 | . 14 16 36 61 23 14 Melee . | . . . . . . . Ram 3 | . . . . . 3 . Kick . | . . . . . . . Crush . | . . . . . . . Escape Stasis 11 | . . . . . 11 . Rewire . | . . . . . . . Trap . | . . . . . . . Miscellaneous . | . . . . . . . Route ------- -11/Scrapyard -10/Materials -9/Materials -8/Materials -7/Factory (discovered 4 exits: *Fac x4) -6/Factory -5/Factory History --------- Turn | Location | Event 16 | -11/Scrapyard | Discovered new exit (range 16) 74 | -11/Scrapyard | Entered Materials 310 | -10/Materials | Build established: Mutant 318 | -10/Materials | Discovered new exit (range 5) 399 | -10/Materials | Entered another Materials area 399 | -9/Materials | Evolved 2 slots: Weapon x2 695 | -9/Materials | Build established: Gunner 735 | -9/Materials | Discovered new exit (range 12) 754 | -9/Materials | Entered another Materials area 754 | -8/Materials | Evolved 2 slots: Utility x2 991 | -8/Materials | Repaired Lgt. Treads 1135 | -8/Materials | Build established: Scavenger-Gunner 1246 | -8/Materials | Lost 4 parts (1p3w) 1261 | -8/Materials | Discovered new exit (range 5) 1292 | -8/Materials | Entered Factory 1292 | -7/Factory | Evolved 2 slots: Utility x2 1759 | -7/Factory | Identified exit to Factory 1900 | -7/Factory | Lost 3 parts (1u2w) 2503 | -7/Factory | Repaired Enh. Nuclear Core 2527 | -7/Factory | Garrison activated, responded to threat 3455 | -7/Factory | Lost 4 parts (1n1u2w) 3458 | -7/Factory | Destroyed 7 combat bots 3479 | -7/Factory | Entered another Factory area 3479 | -6/Factory | Evolved 2 slots: Power x1, Utility x1 3654 | -6/Factory | Repaired Gauss Rifle 3682 | -6/Factory | Repaired Imp. Cooling System 3933 | -6/Factory | Build established: Hacker-Gunner 4191 | -6/Factory | Spotted B-75 Beast 4227 | -6/Factory | Released all parts (3) 4258 | -6/Factory | Lost 9 parts (1p1n4u3w) 4330 | -6/Factory | Lost 3 parts (1p1n1w) 4439 | -6/Factory | Core integrity fell below 50% 4450 | -6/Factory | Released all parts (4) 4511 | -6/Factory | Discovered new exit (range 7) 4518 | -6/Factory | Build established: Mutant 4546 | -6/Factory | Entered another Factory area 4546 | -5/Factory | Evolved 2 slots: Propulsion x2 4826 | -5/Factory | Released all parts (2) 4827 | -5/Factory | Core integrity fell below 50% 4850 | -5/Factory | Lost 5 parts (2n3w) 4864 | -5/Factory | Core integrity fell below 20% 4875 | -5/Factory | Destroyed by S-27 Virus with Autogun Last Messages --------------- 04829_ Penetrated by Slug. 04829_ U-05 Engineer builds a Wall. 04832_ K-01 Serf collects debris. 04832_ Slug penetrates P-70 Sage. 04832_ P-70 Sage suffers critical hit. 04833_ Acquired 11 matter. 04849_ Slug penetrates Wall. 04849_ Pressure Siphon disabled. 04849_ Slug penetrates Wall. 04850_ Fabricator completes Imp. Medium Armor Plating. 04850_ Fabricator completes Recoil Stabilizer. 04853_ Slug penetrates Wall. 04854_ Triggered Alarm Trap. 04854_ An alarm sounds. 04854_ ALERT: Alarm triggered, dispatching investigation squad. 04862_ Connecting with Terminal... 04862_ Current location identified: Factory >>Query(Archives) A decommissioned network hub formerly connected to [Complex 0b1]. It is now linked to the [Cetus Mainframe] and used as a backup. Map ----- +----------------------------------------------------+ | ???????????? ??????????? ??????????????????????? | | ???????????? ????????? ??????????????????????? | | ????????????# #####???? ?????????????????????? | | #############/#"""#### ?????????????????????? | | # # " ??????????????????????? | | # # " ""??????????????????????? | | # " " ""??????????????????????? | | #"" " """?????????????????????? | | | " " " ???????????????????? | | | #"" " ???????????????????? | | =#""% """""# #??????????????????????????? | | # # #??????????????????????????? | | # " # #??????????????????????????? | | "[ " F"" # #??????????????????????????? | | # "" "" # #??????????????????????????? | | # # #??????????????????????????? | | # # +??????????????????????????? | | # # #??????????????????????????? | | " # #??????????????????????????? | | ###############+##### #??????????????????????????? | | """"" #??????????????????????????? | | ""!F" #??????????????????????????? | | ""!"" """ """ #??????????????????????????? | | !!! """ """ #??????????????????????????? | | """ """ ##+########???????????????????? | | """ """ # h s@sp #???????????????????? | | # s""""" #???????????????????? | | """ ""% """ """ # ""T"" #???????????????????? | | """ """ """ """ + s s #???????????????????? | | """ """ """ """ # #???????????????????? | | """ """ """ """ # #???????????????????? | | # #???????????????????? | | """ """ """ """ # #???????????????????? | | """ """ """ """ ###########???????????????????? | | """ """ """ """ ??????????????????????????????? | | "?" "?" """ "?? ??????????????????????????????? | | ? ? ?? ??? ??????????????????????????????? | | ? ? ?? ???????????????????????????????????? | | ?? ??? ??? ???????????????????????????????????? | | ###??#???#???#???????????????????????????????????? | | ?????????????????????????????????????????????????? | | ?????????????????????????????????????????????????? | | ?????????????????????????????????????????????????? | | ?????????????????????????????????????????????????? | | ?????????????????????????????????????????????????? | | ?????????????????????????????????????????????????? | | ?????????????????????????????????????????????????? | | ?????????????????????????????????????????????????? | | ?????????????????????????????????????????????????? | | ?????????????????????????????????????????????????? | +----------------------------------------------------+ Best States ------------- Heat Dissipation 91 Energy Generation 23 Energy Capacity 815 Matter Stores 450 Matter Capacity 450 Sight Range 16 Robot Scan Range 16 Terrain Scan Density 10 Armor Coverage 225 Resistance: EM 25 Evasion (%) 62 Target Analysis 5 Recoil Reduction 4 Matter Filtering 30 Particle Charging 15 Offensive Hacking 20 Item Schematics ----------------- Gravmag Array | -7/Factory | Hacked Robot Schematics ------------------ None Fabricated ------------ Nothing Alien Tech Used ----------------- None Achievements -------------- None Challenges ------------ None Game ------ Seed BoreNodeActivator Manual? 0 Play Time 00:40:04 Cumulative 24.5 hours Start 2020.10.01 @ 17:19:43 End 2020.10.01 @ 17:56:16 Sessions 1 Manual Loads 0 Difficulty Rogue Special Mode None Game No. 47 Rogue 47 Adventurer 0 Explorer 0 Win Type - Total 0 Types 0/0/0/0/0/0/0/0/0 Lore% 21 Gallery% 38 Achievement% 26 Wizard Run 0 Options --------- ASCII 0 Keyboard 1 Movement Numpad Keybinds 0 Fullscreen 1 Font 18/SmallcapsGlow Map View 76x50 Tactical HUD 1 Map Filters NONE Filters NONE Steam 1 RUN: 78edf090-a38c-44a6-908e-0106348607a2